Workbook

Sheet Sum up all datasets
C1: Dropout
C2: No Cluster | D2: Cluster
A3: No filtering | B3: Precision | C3: 0.81127 | D3: 0.82476
B4: F1 | C4: 0.242 | D4: 0.60399
B5: Recall | C5: 0.14235 | D5: 0.47659
B6: Model | C6: Support Vector Classification | D6: Support Vector Classification
A7: Filtering | B7: Precision | C7: 0.8242 | D7: 0.7996
B8: F1 | C8: 0.64773 | D8: 0.63907
B9: Recall | C9: 0.53358 | D9: 0.55571
B10: Model | C10: Support Vector Classification | D10: Multi-layer perceptron
A12: Table 1: Comparision of the best-performing model on each dataset
A13: Note: the data is extracted from the summary table below. Details of the results on each fold are available in the following sheets
C17: Dropout | E17: Dropout | G17: Average no filtering | H17: Uncertainity | I17: Average filtering | J17: Uncertainity
C18: No Cluster | D18: Cluster | E18: No Cluster | F18: Cluster
A19: SVM | B19: F1 | C19: 0.242 | D19: 0.60399 | E19: 0.64773 | F19: 0.72933 | G19: =AVERAGE(C19:D19) -> 0.422995 | H19: =('Results noCluster-noFiltering d'!O28+'Results Cluster-noFilltering da'!O28)/4 -> 0.004961300786 | I19: =AVERAGE(C19:F19) -> 0.5557625 | J19: =('Results noCluster-Filtering dat'!O28+'Results Cluster-Filtering datas'!O28)/4 -> 0.006308570445 | M19: Best F1 score
B20: Precision | C20: 0.81127 | D20: 0.82476 | E20: 0.8242 | F20: 0.79422 | G20: 0.818015 | H20: =('Results noCluster-noFiltering d'!O29+'Results Cluster-noFilltering da'!O29)/4 -> 0.004802229588 | I20: 0.8136125 | J20: =('Results noCluster-Filtering dat'!O29+'Results Cluster-Filtering datas'!O29)/4 -> 0.002386662719 | M20: 2nd and 3rd best
B21: Recall | C21: 0.14235 | D21: 0.47659 | E21: 0.53358 | F21: 0.67571 | G21: 0.30947 | H21: =('Results noCluster-noFiltering d'!O30+'Results Cluster-noFilltering da'!O30)/4 -> 0.004412963719 | I21: 0.4570575 | J21: =('Results noCluster-Filtering dat'!O30+'Results Cluster-Filtering datas'!O30)/4 -> 0.01088098977 | M21: Questionalble results
A22: NN | B22: F1 | C22: 0.55669 | D22: 0.6428 | E22: 0.64592 | F22: 0.63907 | G22: 0.599745 | H22: =('Results noCluster-noFiltering d'!O31+'Results Cluster-noFilltering da'!O31)/4 -> 0.06187150093 | I22: 0.62112 | J22: =('Results noCluster-Filtering dat'!O31+'Results Cluster-Filtering datas'!O31)/4 -> 0.03029868417 | M22: Negative-recall < 30%
B23: Precision | C23: 0.79337 | D23: 0.81921 | E23: 0.82213 | F23: 0.7996 | G23: 0.80629 | H23: =('Results noCluster-noFiltering d'!O32+'Results Cluster-noFilltering da'!O32)/4 -> 0.004573240735 | I23: 0.8085775 | J23: =('Results noCluster-Filtering dat'!O32+'Results Cluster-Filtering datas'!O32)/4 -> 0.003896767449
B24: Recall | C24: 0.53207 | D24: 0.53267 | E24: 0.53382 | F24: 0.55571 | G24: 0.53237 | H24: =('Results noCluster-noFiltering d'!O33+'Results Cluster-noFilltering da'!O33)/4 -> 0.08022323126 | I24: 0.5385675 | J24: =('Results noCluster-Filtering dat'!O33+'Results Cluster-Filtering datas'!O33)/4 -> 0.03954505883
A25: LR | B25: F1 | C25: 0.3739 | D25: 0.653 | E25: 0.67099 | F25: 0.71211 | G25: 0.51345 | H25: =('Results noCluster-noFiltering d'!O34+'Results Cluster-noFilltering da'!O34)/4 -> 0.008469850083 | I25: 0.6025 | J25: =('Results noCluster-Filtering dat'!O34+'Results Cluster-Filtering datas'!O34)/4 -> 0.003599399821 | L25: Boost | N25: 1. RF
B26: Precision | C26: 0.79719 | D26: 0.81835 | E26: 0.82044 | F26: 0.79709 | G26: 0.80777 | H26: =('Results noCluster-noFiltering d'!O35+'Results Cluster-noFilltering da'!O35)/4 -> 0.003404199772 | I26: 0.8082675 | J26: =('Results noCluster-Filtering dat'!O35+'Results Cluster-Filtering datas'!O35)/4 -> 0.002504772528
B27: Recall | C27: 0.24513 | D27: 0.54331 | E27: 0.56766 | F27: 0.6436 | G27: 0.39422 | H27: =('Results noCluster-noFiltering d'!O36+'Results Cluster-noFilltering da'!O36)/4 -> 0.007408588709 | I27: 0.499925 | J27: =('Results noCluster-Filtering dat'!O36+'Results Cluster-Filtering datas'!O36)/4 -> 0.004580593292 | L27: RF | N27: 2. Bag
A28: Bag | B28: F1 | C28: 0.3715 | D28: 0.84677 | E28: 0.84928 | F28: 0.71197 | G28: 0.609135 | H28: =('Results noCluster-noFiltering d'!O37+'Results Cluster-noFilltering da'!O37)/4 -> 0.008916673648 | I28: 0.69488 | J28: =('Results noCluster-Filtering dat'!O37+'Results Cluster-Filtering datas'!O37)/4 -> 0.002381790231 | L28: Bag | N28: 3. Boost
B29: Precision | C29: 0.79895 | D29: 0.78417 | E29: 0.78352 | F29: 0.79457 | G29: 0.79156 | H29: =('Results noCluster-noFiltering d'!O38+'Results Cluster-noFilltering da'!O38)/4 -> 0.003078410328 | I29: 0.7903025 | J29: =('Results noCluster-Filtering dat'!O38+'Results Cluster-Filtering datas'!O38)/4 -> 0.001927245226
B30: Recall | C30: 0.24345 | D30: 0.92021 | E30: 0.92712 | F30: 0.64511 | G30: 0.58183 | H30: =('Results noCluster-noFiltering d'!O39+'Results Cluster-noFilltering da'!O39)/4 -> 0.008146617838 | I30: 0.6839725 | J30: =('Results noCluster-Filtering dat'!O39+'Results Cluster-Filtering datas'!O39)/4 -> 0.004065917333 | L30: 1. SVM | N30: 4. SVM
A31: RF | B31: F1 | C31: 0.3788 | D31: 0.87013 | E31: 0.86984 | F31: 0.7213 | G31: 0.624465 | H31: =('Results noCluster-noFiltering d'!O40+'Results Cluster-noFilltering da'!O40)/4 -> 0.00658318963 | I31: 0.7100175 | J31: =('Results noCluster-Filtering dat'!O40+'Results Cluster-Filtering datas'!O40)/4 -> 0.002221805336 | L31: 2. NN | N31: 5. Tree
B32: Precision | C32: 0.79805 | D32: 0.78041 | E32: 0.78137 | F32: 0.79287 | G32: 0.78923 | H32: =('Results noCluster-noFiltering d'!O41+'Results Cluster-noFilltering da'!O41)/4 -> 0.00227374135 | I32: 0.788175 | J32: =('Results noCluster-Filtering dat'!O41+'Results Cluster-Filtering datas'!O41)/4 -> 0.001647076647
B33: Recall | C33: 0.24898 | D33: 0.98318 | E33: 0.98088 | F33: 0.66177 | G33: 0.61608 | H33: =('Results noCluster-noFiltering d'!O42+'Results Cluster-noFilltering da'!O42)/4 -> 0.005722973746 | I33: 0.7187025 | J33: =('Results noCluster-Filtering dat'!O42+'Results Cluster-Filtering datas'!O42)/4 -> 0.003420933497 | L33: 3. Tree | N33: 6. LR
A34: Boost | B34: F1 | C34: 0.28346 | D34: 0.86752 | E34: 0.84207 | F34: 0.6857 | G34: 0.57549 | H34: =('Results noCluster-noFiltering d'!O43+'Results Cluster-noFilltering da'!O43)/4 -> 0.008557346782 | I34: 0.6696875 | J34: =('Results noCluster-Filtering dat'!O43+'Results Cluster-Filtering datas'!O43)/4 -> 0.02062246741 | L34: 4. LR | N34: 7. NN
B35: Precision | C35: 0.80525 | D35: 0.78096 | E35: 0.7886 | F35: 0.79384 | G35: 0.793105 | H35: =('Results noCluster-noFiltering d'!O44+'Results Cluster-noFilltering da'!O44)/4 -> 0.003323872656 | I35: 0.7921625 | J35: =('Results noCluster-Filtering dat'!O44+'Results Cluster-Filtering datas'!O44)/4 -> 0.002174343045
B36: Recall | C36: 0.17307 | D36: 0.97567 | E36: 0.90342 | F36: 0.62053 | G36: 0.57437 | H36: =('Results noCluster-noFiltering d'!O45+'Results Cluster-noFilltering da'!O45)/4 -> 0.007551598615 | I36: 0.6681725 | J36: =('Results noCluster-Filtering dat'!O45+'Results Cluster-Filtering datas'!O45)/4 -> 0.02889171045 | L36: Significant difference
A37: Decision Tree | B37: F1 | C37: 0.37635 | D37: 0.77329 | E37: 0.76452 | F37: 0.71773 | G37: 0.57482 | H37: =('Results noCluster-noFiltering d'!O46+'Results Cluster-noFilltering da'!O46)/4 -> 0.008452921412 | I37: 0.6579725 | J37: =('Results noCluster-Filtering dat'!O46+'Results Cluster-Filtering datas'!O46)/4 -> 0.00291152935
B38: Precision | C38: 0.79763 | D38: 0.78575 | E38: 0.78757 | F38: 0.79289 | G38: 0.79169 | H38: =('Results noCluster-noFiltering d'!O47+'Results Cluster-noFilltering da'!O47)/4 -> 0.002552173897 | I38: 0.79096 | J38: =('Results noCluster-Filtering dat'!O47+'Results Cluster-Filtering datas'!O47)/4 -> 0.002030946595
B39: Recall | C39: 0.24738 | D39: 0.76132 | E39: 0.74281 | F39: 0.65583 | G39: 0.50435 | H39: =('Results noCluster-noFiltering d'!O48+'Results Cluster-noFilltering da'!O48)/4 -> 0.007603726954 | I39: 0.601835 | J39: =('Results noCluster-Filtering dat'!O48+'Results Cluster-Filtering datas'!O48)/4 -> 0.004681779037
A41: Complementary table: Summary of the average perofrmances of each model on each dataset

Sheet Results noCluster-noFiltering d
C1: fold | D1: 1 | E1: 2 | F1: 3 | G1: 4 | H1: 5 | I1: 6 | J1: 7 | K1: 8 | L1: 9 | M1: 10 | N1: Average
A2: First training session : | B2: SVM | C2: AUROC | D2: 0.5752 | E2: 0.5738 | F2: 0.6065 | G2: 0.5646 | H2: 0.5988 | I2: 0.6008 | J2: 0.6037 | K2: 0.5892 | L2: 0.6105 | M2: 0.5791 | N2: =AVERAGE(E2:M2) -> 0.5918888889
A3: Note: these results are from a preliminary training step without any filtering or clustering of the database nor model tuning. All the data mentionned in the paper is from the second training session. | C3: F1 | D3: 0.1357 | E3: 0.1708 | F3: 0.1531 | G3: 0.1765 | H3: 0.1505 | I3: 0.1411 | J3: 0.1355 | K3: 0.1111 | L3: 0.1405 | M3: 0.1518 | N3: 0.1478777778
C4: LogLoss | D4: -1.132 | E4: -1.1539 | F4: -1.0969 | G4: -1.1246 | H4: -1.0942 | I4: -1.1201 | J4: -1.1095 | K4: -1.1047 | L4: -1.1026 | M4: -1.1363 | N4: -1.115866667
B5: NN | C5: AUROC | D5: 0.576 | E5: 0.5359 | F5: 0.5892 | G5: 0.549 | H5: 0.5751 | I5: 0.5509 | J5: 0.5516 | K5: 0.5541 | L5: 0.555 | M5: 0.5477 | N5: 0.5565 | Q5: AUROC > 0,55 | R5: F1>0,85
C6: F1 | D6: 0.6416 | E6: 0.6172 | F6: 0.6461 | G6: 0.589 | H6: 0.6597 | I6: 0.5675 | J6: 0.6055 | K6: 0.6472 | L6: 0.6202 | M6: 0.6328 | N6: 0.6205777778 | Q6: 0,50< AUROC < 0,55 | R6: 0,75<F1<0,85
C7: LogLoss | D7: -3.7792 | E7: -3.7449 | F7: -3.1211 | G7: -4.3055 | H7: -3.2205 | I7: -3.6767 | J7: -3.7743 | K7: -3.828 | L7: -3.7826 | M7: -4.0045 | N7: -3.717566667 | Q7: AUROC < 0,5 | R7: F1<0,75
B8: CT | C8: AUROC | D8: 0.524 | E8: 0.5208 | F8: 0.542 | G8: 0.5248 | H8: 0.5318 | I8: 0.5274 | J8: 0.5228 | K8: 0.5222 | L8: 0.5349 | M8: 0.5284 | N8: 0.5283444444
C9: F1 | D9: 0.6283 | E9: 0.6162 | F9: 0.6359 | G9: 0.6377 | H9: 0.639 | I9: 0.6398 | J9: 0.6353 | K9: 0.6328 | L9: 0.6394 | M9: 0.6333 | N9: 0.6343777778
A10: Note 2: a blank case means that the model has not converge | C10: LogLoss | D10: -17.4415 | E10: -17.8179 | F10: -17.0651 | G10: -17.1592 | H10: -17.0651 | I10: -17.0807 | J10: -17.2533 | K10: -17.3317 | L10: -17.0254 | M10: -17.2608 | N10: -17.2288
B11: NB | C11: AUROC | D11: 0.5271 | E11: 0.55 | F11: 0.5439 | G11: 0.545 | H11: 0.5034 | I11: 0.5749 | J11: 0.5571 | K11: 0.5322 | L11: 0.5001 | M11: 0.5458 | N11: 0.5391555556
C12: F1 | D12: 0.8649 | E12: 0.8708 | F12: 0.8756 | G12: 0.8777 | H12: 0.878 | I12: 0.8554 | J12: 0.6387 | K12: 0.8341 | L12: 0.8792 | M12: 0.5958 | N12: 0.8117
C13: LogLoss | D13: -5.2954 | E13: -5.8869 | F13: -6.8317 | G13: -6.5734 | H13: -7.6619 | I13: -5.4753 | J13: -7.1278 | K13: -5.499 | L13: -7.6027 | M13: -7.995 | N13: -6.7393
B14: LR | C14: AUROC | D14: 0.5642 | E14: 0.5683 | F14: 0.608 | G14: 0.562 | H14: 0.5914 | I14: 0.6079 | J14: 0.5833 | K14: 0.587 | L14: 0.6015 | M14: 0.583 | N14: 0.5880444444
C15: F1 | D15: 0.1952 | E15: 0.1655 | F15: 0.1688 | G15: 0.1874 | H15: 0.2038 | I15: 0.1759 | J15: 0.1732 | K15: 0.15 | L15: 0.1587 | M15: 0.172 | N15: 0.1728111111
C16: LogLoss | D16: -1.3414 | E16: -1.3405 | F16: -1.3077 | G16: -1.3244 | H16: -1.318 | I16: -1.2971 | J16: -1.3378 | K16: -1.3168 | L16: -1.3276 | M16: -1.3156 | N16: -1.320611111
B17: Bagging | C17: AUROC | D17: 0.5629 | E17: 0.5584 | F17: 0.6052 | G17: 0.5346 | H17: 0.5674 | I17: 0.5736 | J17: 0.5658 | K17: 0.5812 | L17: 0.5795 | M17: 0.5457 | N17: 0.5679333333
C18: F1 | D18: 0.5263 | E18: 0.5555 | F18: 0.5651 | G18: 0.5694 | H18: 0.5839 | I18: 0.5662 | J18: 0.5479 | K18: 0.5608 | L18: 0.5295 | M18: 0.5564 | N18: 0.5594111111
C19: LogLoss | D19: -1.5651 | E19: -1.7615 | F19: -1.367 | G19: -1.6393 | H19: -1.5049 | I19: -1.3923 | J19: -1.5755 | K19: -1.546 | L19: -1.5374 | M19: -1.8685 | N19: -1.576933333
B20: RF | C20: AUROC | D20: 0.577 | E20: 0.587 | F20: 0.6117 | G20: 0.5659 | H20: 0.5994 | I20: 0.6028 | J20: 0.5892 | K20: 0.5951 | L20: 0.5996 | M20: 0.5911 | N20: 0.5935333333
C21: F1 | D21: 0.5803 | E21: 0.5612 | F21: 0.5657 | G21: 0.5934 | H21: 0.5889 | I21: 0.5737 | J21: 0.573 | K21: 0.574 | L21: 0.5898 | M21: 0.5792 | N21: 0.5776555556
C22: LogLoss | D22: -0.7976 | E22: -0.7744 | F22: -0.7857 | G22: -0.7857 | H22: -0.8085 | I22: -0.7571 | J22: -0.806 | K22: -0.782 | L22: -0.7959 | M22: -0.7869 | N22: -0.7869111111
B23: Boosting | C23: AUROC | D23: 0.5474 | E23: 0.5757 | F23: 0.5873 | G23: 0.5437 | H23: 0.5587 | I23: 0.5869 | J23: 0.5914 | K23: 0.5767 | L23: 0.5795 | M23: 0.569 | N23: 0.5743222222
C24: F1 | D24: 0.4 | E24: 0.45 | F24: 0.3908 | G24: 0.4394 | H24: 0.392 | I24: 0.4208 | J24: 0.4272 | K24: 0.4494 | L24: 0.4394 | M24: 0.4123 | N24: 0.4245888889
C25: LogLoss | D25: -0.6959 | E25: -0.6954 | F25: -0.6958 | G25: -0.6956 | H25: -0.6958 | I25: -0.6954 | J25: -0.6956 | K25: -0.6955 | L25: -0.6955 | M25: -0.6957 | N25: -0.6955888889
O27: Uncertainities
A28: Second training session : | B28: SVM | C28: F1 | D28: 0.2267 | E28: 0.2622 | F28: 0.2728 | G28: 0.2317 | H28: 0.2218 | I28: 0.2561 | J28: 0.2323 | K28: 0.2217 | L28: 0.243 | M28: 0.2517 | N28: =AVERAGE(D28:M28) -> 0.242 | O28: =2.26*STDEV(D28:M28)/SQRT(10) -> 0.01283981475
C29: Precision | D29: 0.8175 | E29: 0.7996 | F29: 0.8246 | G29: 0.8212 | H29: 0.8201 | I29: 0.8391 | J29: 0.8195 | K29: 0.7974 | L29: 0.7768 | M29: 0.7969 | N29: 0.81127 | O29: 0.01295768591
C30: Recall | D30: 0.1316 | E30: 0.1568 | F30: 0.1634 | G30: 0.1349 | H30: 0.1283 | I30: 0.1511 | J30: 0.1353 | K30: 0.1287 | L30: 0.144 | M30: 0.1494 | N30: 0.14235 | O30: 0.008866912544
B31: NN | C31: F1 | D31: 0.2486 | E31: 0.8371 | F31: 0.8483 | G31: 0.2676 | H31: 0.8338 | I31: 0.8132 | J31: 0.4016 | K31: 0.8276 | L31: 0.2525 | M31: 0.2366 | N31: 0.55669 | O31: 0.2100139133
C32: Precision | D32: 0.8213 | E32: 0.7766 | F32: 0.7766 | G32: 0.8147 | H32: 0.7833 | I32: 0.7851 | J32: 0.799 | K32: 0.781 | L32: 0.7908 | M32: 0.8053 | N32: 0.79337 | O32: 0.01142725222
C33: Recall | D33: 0.1465 | E33: 0.9077 | F33: 0.9346 | G33: 0.1601 | H33: 0.8912 | I33: 0.8435 | J33: 0.2682 | K33: 0.88 | L33: 0.1502 | M33: 0.1387 | N33: 0.53207 | O33: 0.2723864703
B34: LR | C34: F1 | D34: 0.4061 | E34: 0.2667 | F34: 0.4039 | G34: 0.4015 | H34: 0.38 | I34: 0.3899 | J34: 0.3926 | K34: 0.3668 | L34: 0.3795 | M34: 0.352 | N34: 0.3739 | O34: 0.02955786639
C35: Precision | D35: 0.8059 | E35: 0.787 | F35: 0.793 | G35: 0.799 | H35: 0.8097 | I35: 0.8155 | J35: 0.7982 | K35: 0.7688 | L35: 0.8043 | M35: 0.7905 | N35: 0.79719 | O35: 0.009512929756
C36: Recall | D36: 0.2714 | E36: 0.1605 | F36: 0.271 | G36: 0.2681 | H36: 0.2482 | I36: 0.2562 | J36: 0.2603 | K36: 0.2409 | L36: 0.2483 | M36: 0.2264 | N36: 0.24513 | O36: 0.02357112587
B37: Bag | C37: F1 | D37: 0.4016 | E37: 0.3925 | F37: 0.413 | G37: 0.3993 | H37: 0.2949 | I37: 0.3342 | J37: 0.4048 | K37: 0.4094 | L37: 0.2988 | M37: 0.3665 | N37: 0.3715 | O37: 0.03279946201
C38: Precision | D38: 0.8037 | E38: 0.7945 | F38: 0.7993 | G38: 0.7852 | H38: 0.8074 | I38: 0.8333 | J38: 0.7988 | K38: 0.7818 | L38: 0.7838 | M38: 0.8017 | N38: 0.79895 | O38: 0.01069124392
C39: Recall | D39: 0.2677 | E39: 0.2607 | F39: 0.2784 | G39: 0.2677 | H39: 0.1804 | I39: 0.209 | J39: 0.2711 | K39: 0.2773 | L39: 0.1846 | M39: 0.2376 | N39: 0.24345 | O39: 0.02743745593
B40: RF | C40: F1 | D40: 0.3895 | E40: 0.3859 | F40: 0.4059 | G40: 0.3837 | H40: 0.3924 | I40: 0.4035 | J40: 0.3817 | K40: 0.3892 | L40: 0.2842 | M40: 0.372 | N40: 0.3788 | O40: 0.02479180971
C41: Precision | D41: 0.7967 | E41: 0.8066 | F41: 0.7976 | G41: 0.7879 | H41: 0.7972 | I41: 0.8219 | J41: 0.7984 | K41: 0.7815 | L41: 0.7861 | M41: 0.8066 | N41: 0.79805 | O41: 0.008380727527
C42: Recall | D42: 0.2578 | E42: 0.2536 | F42: 0.2722 | G42: 0.2536 | H42: 0.2602 | I42: 0.2674 | J42: 0.2508 | K42: 0.2591 | L42: 0.1734 | M42: 0.2417 | N42: 0.24898 | O42: 0.01992548296
B43: Boost | C43: F1 | D43: 0.3975 | E43: 0.2624 | F43: 0.2777 | G43: 0.2934 | H43: 0.2837 | I43: 0.2959 | J43: 0.2936 | K43: 0.249 | L43: 0.2319 | M43: 0.2495 | N43: 0.28346 | O43: 0.03269628438
C44: Precision | D44: 0.8008 | E44: 0.7933 | F44: 0.81 | G44: 0.8022 | H44: 0.8153 | I44: 0.8395 | J44: 0.8197 | K44: 0.7898 | L44: 0.7815 | M44: 0.8004 | N44: 0.80525 | O44: 0.01191987838
C45: Recall | D45: 0.2644 | E45: 0.1572 | F45: 0.1676 | G45: 0.1796 | H45: 0.1717 | I45: 0.1796 | J45: 0.1788 | K45: 0.1478 | L45: 0.1362 | M45: 0.1478 | N45: 0.17307 | O45: 0.0254125597
B46: Tree | C46: F1 | D46: 0.2581 | E46: 0.3714 | F46: 0.4057 | G46: 0.4019 | H46: 0.4001 | I46: 0.3899 | J46: 0.3915 | K46: 0.3838 | L46: 0.3885 | M46: 0.3726 | N46: 0.37635 | O46: 0.03080033989
C47: Precision | D47: 0.7983 | E47: 0.8022 | F47: 0.7956 | G47: 0.791 | H47: 0.7993 | I47: 0.8238 | J47: 0.7929 | K47: 0.7795 | L47: 0.7951 | M47: 0.7986 | N47: 0.79763 | O47: 0.007956430492
C48: Recall | D48: 0.1539 | E48: 0.2416 | F48: 0.2722 | G48: 0.2693 | H48: 0.2669 | I48: 0.2554 | J48: 0.2599 | K48: 0.2546 | L48: 0.257 | M48: 0.243 | N48: 0.24738 | O48: 0.02456651764

Sheet Results Cluster-noFilltering da
C1: fold | D1: 1 | E1: 2 | F1: 3 | G1: 4 | H1: 5 | I1: 6 | J1: 7 | K1: 8 | L1: 9 | M1: 10 | N1: Average
A2: First training session : | B2: SVM | C2: AUROC | D2: 0.57 | E2: 0.5897 | F2: 0.603 | G2: 0.5612 | H2: 0.5863 | I2: 0.586 | J2: 0.591 | K2: 0.555 | L2: 0.5962 | M2: 0.569 | N2: =AVERAGE(E2:M2) -> 0.5819333333
A3: Note: these results are from a preliminary training step without any filtering or clustering of the database nor model tuning. All the data mentionned in the paper is from the second training session. | C3: F1 | D3: 0.3755 | E3: 0.3763 | F3: 0.3199 | G3: 0.3646 | H3: 0.3381 | I3: 0.3453 | J3: 0.3443 | K3: 0.297 | L3: 0.357 | M3: 0.3568 | N3: 0.3443666667
C4: LogLoss | D4: -1.0412 | E4: -1.0607 | F4: -1.0294 | G4: -1.0527 | H4: -1.0368 | I4: -1.0708 | J4: -1.0547 | K4: -1.0791 | L4: -1.0271 | M4: -1.0949 | N4: -1.056244444
B5: NN | C5: AUROC | D5: 0.5522 | E5: 0.5613 | F5: 0.5678 | G5: 0.5437 | H5: 0.5717 | I5: 0.5249 | J5: 0.5552 | K5: 0.5484 | L5: 0.5748 | M5: 0.5397 | N5: 0.5541666667
C6: F1 | D6: 0.6388 | E6: 0.6519 | F6: 0.6253 | G6: 0.6445 | H6: 0.6335 | I6: 0.5978 | J6: 0.6521 | K6: 0.6376 | L6: 0.7166 | M6: 0.6527 | N6: 0.6457777778 | Q6: AUROC or F1 > 0,6 | R6: LogLoss < 0,7
C7: LogLoss | D7: -4.1326 | E7: -3.3973 | F7: -4.1776 | G7: -4.2242 | H7: -3.882 | I7: -4.7816 | J7: -4.3471 | K7: -3.7078 | L7: -3.3875 | M7: -4.0621 | N7: -3.996355556 | Q7: 0,55< AUROC or F1 < 0,6 | R7: 0,7 < LogLoss < 1
B8: CT | C8: AUROC | D8: 0.5332 | E8: 0.5247 | F8: 0.5294 | G8: 0.5133 | H8: 0.5241 | I8: 0.5304 | J8: 0.5249 | K8: 0.5427 | L8: 0.5458 | M8: 0.5475 | N8: 0.5314222222 | Q8: AUROC or F1 < 0,55 | R8: LogLoss > 1
C9: F1 | D9: 0.6406 | E9: 0.6519 | F9: 0.6375 | G9: 0.6504 | H9: 0.6327 | I9: 0.6384 | J9: 0.6514 | K9: 0.6379 | L9: 0.6526 | M9: 0.6443 | N9: 0.6441222222
A10: Note 2: a blank case means that the model has not converge | C10: LogLoss | D10: -17.0023 | E10: -16.7357 | F10: -17.1278 | G10: -16.8768 | H10: -17.316 | I10: -17.0964 | J10: -16.7514 | K10: -17.0023 | L10: -16.539 | M10: -16.7743 | N10: -16.9133
B11: NB | C11: AUROC | D11: 0.5178 | E11: 0.5596 | F11: 0.5571 | G11: 0.5357 | H11: 0.5317 | I11: 0.5952 | J11: 0.5779 | K11: 0.5264 | L11: 0.5967 | M11: 0.5305 | N11: 0.5567555556
C12: F1 | D12: 0.5195 | E12: 0.4358 | F12: 0.5753 | G12: 0.5191 | H12: 0.6889 | I12: 0.6255 | J12: 0.6039 | K12: 0.5729 | L12: 0.5712 | M12: 0.5684 | N12: 0.5734444444
C13: LogLoss | D13: -9.9852 | E13: -12.5191 | F13: -7.3572 | G13: -9.6058 | H13: -5.6061 | I13: -6.5302 | J13: -6.6291 | K13: -8.8905 | L13: -7.4801 | M13: -8.1878 | N13: -8.089544444
B14: LR | C14: AUROC | D14: 0.5561 | E14: 0.5839 | F14: 0.5805 | G14: 0.5454 | H14: 0.5827 | I14: 0.5856 | J14: 0.5807 | K14: 0.5751 | L14: 0.5973 | M14: 0.5692 | N14: 0.5778222222
C15: F1 | D15: 0.1791 | E15: 0.1577 | F15: 0.1469 | G15: 0.1526 | H15: 0.1649 | I15: 0.1479 | J15: 0.1421 | K15: 0.1491 | L15: 0.1339 | M15: 0.1625 | N15: 0.1508444444
C16: LogLoss | D16: -1.2742 | E16: -1.2553 | F16: -1.2569 | G16: -1.2701 | H16: -1.2468 | I16: -1.2534 | J16: -1.2645 | K16: -1.2719 | L16: -1.2682 | M16: -1.2721 | N16: -1.262133333
B17: Bagging | C17: AUROC | D17: 0.5476 | E17: 0.5556 | F17: 0.5632 | G17: 0.525 | H17: 0.5508 | I17: 0.5615 | J17: 0.5462 | K17: 0.5648 | L17: 0.56 | M17: 0.5584 | N17: 0.5539444444
C18: F1 | D18: 0.584 | E18: 0.5883 | F18: 0.5704 | G18: 0.5773 | H18: 0.602 | I18: 0.5782 | J18: 0.589 | K18: 0.5986 | L18: 0.596 | M18: 0.5688 | N18: 0.5854
C19: LogLoss | D19: -1.2208 | E19: -1.4051 | F19: -1.2066 | G19: -1.5303 | H19: -1.3846 | I19: -1.1841 | J19: -1.3632 | K19: -1.4643 | L19: -1.2091 | M19: -1.4653 | N19: -1.356955556
B20: RF | C20: AUROC | D20: 0.5721 | E20: 0.5724 | F20: 0.5781 | G20: 0.5541 | H20: 0.588 | I20: 0.5893 | J20: 0.586 | K20: 0.5814 | L20: 0.5778 | M20: 0.5707 | N20: 0.5775333333
C21: F1 | D21: 0.6209 | E21: 0.64 | F21: 0.6154 | G21: 0.6175 | H21: 0.6233 | I21: 0.6239 | J21: 0.6367 | K21: 0.6321 | L21: 0.6091 | M21: 0.6147 | N21: 0.6236333333
C22: LogLoss | D22: -0.7355 | E22: -0.7619 | F22: -0.7683 | G22: -0.7768 | H22: -0.7619 | I22: -0.7318 | J22: -0.7612 | K22: -0.7514 | L22: -0.7547 | M22: -0.808 | N22: -0.764
B23: Boosting | C23: AUROC | D23: 0.5395 | E23: 0.5545 | F23: 0.5773 | G23: 0.5263 | H23: 0.5743 | I23: 0.5879 | J23: 0.5812 | K23: 0.5639 | L23: 0.5809 | M23: 0.55 | N23: 0.5662555556
C24: F1 | D24: 0.4111 | E24: 0.4287 | F24: 0.4198 | G24: 0.4475 | H24: 0.4241 | I24: 0.4422 | J24: 0.4448 | K24: 0.4136 | L24: 0.451 | M24: 0.3697 | N24: 0.4268222222
C25: LogLoss | D25: -0.6956 | E25: -0.6954 | F25: -0.6952 | G25: -0.6956 | H25: -0.6952 | I25: -0.6953 | J25: -0.6953 | K25: -0.6955 | L25: -0.6954 | M25: -0.6957 | N25: -0.6954
O27: Uncertainities
A28: Second training session : | B28: SVM | C28: F1 | D28: 0.6049 | E28: 0.6054 | F28: 0.6115 | G28: 0.6084 | H28: 0.5883 | I28: 0.6065 | J28: 0.6211 | K28: 0.6004 | L28: 0.6045 | M28: 0.5889 | N28: =AVERAGE(D28:M28) -> 0.60399 | O28: =2.26*STDEV(D28:M28)/SQRT(10) -> 0.007005388396
C29: Precision | D29: 0.8265 | E29: 0.8283 | F29: 0.8157 | G29: 0.8081 | H29: 0.8263 | I29: 0.8319 | J29: 0.8345 | K29: 0.8164 | L29: 0.8345 | M29: 0.8254 | N29: 0.82476 | O29: 0.006251232446
C30: Recall | D30: 0.477 | E30: 0.477 | F30: 0.489 | G30: 0.4878 | H30: 0.4568 | I30: 0.4772 | J30: 0.4946 | K30: 0.4748 | L30: 0.4739 | M30: 0.4578 | N30: 0.47659 | O30: 0.00878494233
B31: NN | C31: F1 | D31: 0.5167 | E31: 0.6649 | F31: 0.649 | G31: 0.6744 | H31: 0.6577 | I31: 0.6653 | J31: 0.682 | K31: 0.6459 | L31: 0.6858 | M31: 0.5863 | N31: 0.6428 | O31: 0.03747209037
C32: Precision | D32: 0.8377 | E32: 0.8194 | F32: 0.8181 | G32: 0.8119 | H32: 0.8073 | I32: 0.8258 | J32: 0.8124 | K32: 0.8088 | L32: 0.8223 | M32: 0.8284 | N32: 0.81921 | O32: 0.006865710717
C33: Recall | D33: 0.3736 | E33: 0.5594 | F33: 0.5379 | G33: 0.5767 | H33: 0.5548 | I33: 0.5571 | J33: 0.5877 | K33: 0.5377 | L33: 0.5882 | M33: 0.4536 | N33: 0.53267 | O33: 0.04850645476
B34: LR | C34: F1 | D34: 0.6515 | E34: 0.664 | F34: 0.6565 | G34: 0.6528 | H34: 0.641 | I34: 0.652 | J34: 0.6578 | K34: 0.6523 | L34: 0.654 | M34: 0.6481 | N34: 0.653 | O34: 0.004321533946
C35: Precision | D35: 0.8204 | E35: 0.8231 | F35: 0.8143 | G35: 0.8104 | H35: 0.8168 | I35: 0.8251 | J35: 0.8134 | K35: 0.8128 | L35: 0.8276 | M35: 0.8196 | N35: 0.81835 | O35: 0.004103869331
C36: Recall | D36: 0.5403 | E36: 0.5565 | F36: 0.5499 | G36: 0.5465 | H36: 0.5275 | I36: 0.5389 | J36: 0.5522 | K36: 0.5447 | L36: 0.5406 | M36: 0.536 | N36: 0.54331 | O36: 0.006063228968
B37: Bag | C37: F1 | D37: 0.8468 | E37: 0.8436 | F37: 0.8491 | G37: 0.8443 | H37: 0.8521 | I37: 0.8499 | J37: 0.8439 | K37: 0.8391 | L37: 0.8508 | M37: 0.8481 | N37: 0.84677 | O37: 0.002867232587
C38: Precision | D38: 0.784 | E38: 0.7833 | F38: 0.7879 | G38: 0.7836 | H38: 0.7849 | I38: 0.7837 | J38: 0.7829 | K38: 0.7795 | L38: 0.7866 | M38: 0.7853 | N38: 0.78417 | O38: 0.001622397388
C39: Recall | D39: 0.9206 | E39: 0.9139 | F39: 0.9206 | G39: 0.9152 | H39: 0.9317 | I39: 0.9284 | J39: 0.9151 | K39: 0.9085 | L39: 0.9263 | M39: 0.9218 | N39: 0.92021 | O39: 0.005149015423
B40: RF | C40: F1 | D40: 0.8667 | E40: 0.8718 | F40: 0.8674 | G40: 0.8698 | H40: 0.8723 | I40: 0.8722 | J40: 0.8721 | K40: 0.8686 | L40: 0.8717 | M40: 0.8687 | N40: 0.87013 | O40: 0.001540948812
C41: Precision | D41: 0.7783 | E41: 0.7811 | F41: 0.7798 | G41: 0.7802 | H41: 0.7819 | I41: 0.781 | J41: 0.7806 | K41: 0.7802 | L41: 0.7812 | M41: 0.7798 | N41: 0.78041 | O41: 0.000714237872
C42: Recall | D42: 0.9777 | E42: 0.9863 | F42: 0.9772 | G42: 0.9826 | H42: 0.9863 | I42: 0.9876 | J42: 0.988 | K42: 0.9797 | L42: 0.9859 | M42: 0.9805 | N42: 0.98318 | O42: 0.002966412022
B43: Boost | C43: F1 | D43: 0.8663 | E43: 0.8684 | F43: 0.8716 | G43: 0.866 | H43: 0.869 | I43: 0.8668 | J43: 0.8681 | K43: 0.8641 | L43: 0.8658 | M43: 0.8691 | N43: 0.86752 | O43: 0.001533102742
C44: Precision | D44: 0.7788 | E44: 0.7813 | F44: 0.7802 | G44: 0.7817 | H44: 0.7816 | I44: 0.7803 | J44: 0.7796 | K44: 0.7802 | L44: 0.7858 | M44: 0.7801 | N44: 0.78096 | O44: 0.001375612245
C45: Recall | D45: 0.976 | E45: 0.9772 | F45: 0.9872 | G45: 0.9706 | H45: 0.9785 | I45: 0.9748 | J45: 0.9793 | K45: 0.9681 | L45: 0.964 | M45: 0.981 | N45: 0.97567 | O45: 0.004793834758
B46: Tree | C46: F1 | D46: 0.7727 | E46: 0.7805 | F46: 0.7708 | G46: 0.7679 | H46: 0.7779 | I46: 0.7699 | J46: 0.7707 | K46: 0.7702 | L46: 0.778 | M46: 0.7743 | N46: 0.77329 | O46: 0.003011345761
C47: Precision | D47: 0.7833 | E47: 0.7849 | F47: 0.7898 | G47: 0.788 | H47: 0.7904 | I47: 0.7827 | J47: 0.7858 | K47: 0.7826 | L47: 0.7881 | M47: 0.7819 | N47: 0.78575 | O47: 0.002252265097
C48: Recall | D48: 0.7625 | E48: 0.7762 | F48: 0.7526 | G48: 0.7489 | H48: 0.7658 | I48: 0.7575 | J48: 0.7562 | K48: 0.7583 | L48: 0.7682 | M48: 0.767 | N48: 0.76132 | O48: 0.005848390177

Sheet Results noCluster-Filtering dat
A1: 0.002 for no cluster and | C1: fold | D1: 1 | E1: 2 | F1: 3 | G1: 4 | H1: 5 | I1: 6 | J1: 7 | K1: 8 | L1: 9 | M1: 10 | N1: Average
A2: First training session : | B2: SVM | C2: AUROC | D2: 0.5179 | E2: 0.5255 | F2: 0.5321 | G2: 0.499 | H2: 0.5267 | I2: 0.497 | J2: 0.5628 | K2: 0.5268 | L2: 0.5091 | M2: 0.5276 | N2: =AVERAGE(E2:M2) -> 0.5229555556
A3: Note: these results are from a preliminary training step without any filtering or clustering of the database nor model tuning. All the data mentionned in the paper is from the second training session. | C3: F1 | D3: 0.8662 | E3: 0.8882 | F3: 0.8891 | G3: 0.8891 | H3: 0.8785 | I3: 0.8336 | J3: 0.788 | K3: 0.8885 | L3: 0.889 | M3: 0.8893 | N3: 0.8703666667
C4: LogLoss | D4: -1.7556 | E4: -3.1716 | F4: -3.2236 | G4: -4.2057 | H4: -1.3993 | I4: -2.1793 | J4: -3.2246 | K4: -2.8729 | L4: -4.0043 | M4: -2.5358 | N4: -2.979677778
B5: NN | C5: AUROC | D5: 0.5328 | E5: 0.5149 | F5: 0.5342 | G5: 0.491 | H5: 0.5162 | I5: 0.5116 | J5: 0.5196 | K5: 0.5119 | L5: 0.517 | M5: 0.5346 | N5: 0.5167777778 | Q5: AUROC > 0,55 | R5: F1>0,85
C6: F1 | D6: 0.8877 | E6: 0.8882 | F6: 0.8895 | G6: 0.8887 | H6: 0.8728 | I6: 0.888 | J6: 0.8888 | K6: 0.8887 | L6: 0.8857 | M6: 0.8894 | N6: 0.8866444444 | Q6: 0,50< AUROC < 0,55 | R6: 0,75<F1<0,85
C7: LogLoss | D7: -2.7486 | E7: -2.8521 | F7: -2.3705 | G7: -2.4492 | H7: -1.8517 | I7: -2.7848 | J7: -2.1029 | K7: -2.5334 | L7: -1.9217 | M7: -2.4042 | N7: -2.363388889 | Q7: AUROC < 0,5 | R7: F1<0,75
B8: CT | C8: AUROC | D8: 0.4977 | E8: 0.4995 | F8: 0.5008 | G8: 0.4973 | H8: 0.4998 | I8: 0.4976 | J8: 0.4976 | K8: 0.4989 | L8: 0.4984 | M8: 0.5027 | N8: 0.4991777778
C9: F1 | D9: 0.8628 | E9: 0.8801 | F9: 0.8893 | G9: 0.8761 | H9: 0.8867 | I9: 0.8863 | J9: 0.8854 | K9: 0.8877 | L9: 0.8879 | M9: 0.8888 | N9: 0.8853666667
A10: Note 2: a blank case means that the model has not converge | C10: LogLoss | D10: -8.5953 | E10: -7.6855 | F10: -7.1836 | G10: -7.9051 | H10: -7.3248 | I10: -7.3562 | J10: -7.4032 | K10: -7.2777 | L10: -7.2652 | M10: -7.2025 | N10: -7.400422222
B11: NB | C11: AUROC | D11: 0.519 | E11: 0.5339 | F11: 0.482 | G11: 0.461 | H11: 0.5098 | I11: 0.4861 | J11: 0.5478 | K11: 0.4977 | L11: 0.4609 | M11: 0.5122 | N11: 0.4990444444
C12: F1 | D12: 0.7343 | E12: 0.8039 | F12: 0.0991 | G12: 0.8653 | H12: 0.3345 | I12: 0.5493 | J12: 0.4646 | K12: 0.0905 | L12: 0.1031 | M12: 0.1275 | N12: 0.3819777778
C13: LogLoss | D13: -4.7222 | E13: -9.2829 | F13: -15.9646 | G13: -2.1178 | H13: -6.651 | I13: -2.0346 | J13: -3.904 | K13: -7.5323 | L13: -8.3827 | M13: -14.9658 | N13: -7.870633333
B14: LR | C14: AUROC | D14: 0.5074 | E14: 0.4819 | F14: 0.521 | G14: 0.4726 | H14: 0.5205 | I14: 0.4859 | J14: 0.5621 | K14: 0.4987 | L14: 0.4907 | M14: 0.5138 | N14: 0.5052444444
C15: F1 | D15: 0.8891 | E15: 0.8873 | F15: 0.889 | G15: 0.8885 | H15: 0.8891 | I15: 0.8895 | J15: 0.7145 | K15: 0.8891 | L15: 0.8897 | M15: 0.8889 | N15: 0.8695111111
C16: LogLoss | D16: -1.2823 | E16: -0.8967 | F16: -1.192 | G16: -1.1635 | H16: -1.1562 | I16: -1.1332 | J16: -1.6008 | K16: -1.1837 | L16: -1.2434 | M16: -1.1956 | N16: -1.196122222
B17: Bagging | C17: AUROC | D17: 0.4983 | E17: 0.5014 | F17: 0.5 | G17: 0.4962 | H17: 0.4939 | I17: 0.4949 | J17: 0.5162 | K17: 0.5011 | L17: 0.4935 | M17: 0.4995 | N17: 0.4996333333
C18: F1 | D18: 0.8648 | E18: 0.8864 | F18: 0.8878 | G18: 0.8863 | H18: 0.876 | I18: 0.8866 | J18: 0.8725 | K18: 0.8876 | L18: 0.8871 | M18: 0.8869 | N18: 0.8841333333
C19: LogLoss | D19: -8.2505 | E19: -7.0763 | F19: -7.1576 | G19: -7.2227 | H19: -7.4873 | I19: -7.2224 | J19: -6.9373 | K19: -7.1599 | L19: -7.1952 | M19: -7.1781 | N19: -7.181866667
B20: RF | C20: AUROC | D20: 0.4989 | E20: 0.5318 | F20: 0.5007 | G20: 0.4906 | H20: 0.5254 | I20: 0.4985 | J20: 0.5073 | K20: 0.5241 | L20: 0.4922 | M20: 0.5162 | N20: 0.5096444444
C21: F1 | D21: 0.8665 | E21: 0.7908 | F21: 0.8887 | G21: 0.8877 | H21: 0.8812 | I21: 0.889 | J21: 0.8704 | K21: 0.8885 | L21: 0.889 | M21: 0.889 | N21: 0.8749222222
C22: LogLoss | D22: -5.7979 | E22: -9.416 | F22: -6.7401 | G22: -6.9204 | H22: -4.8826 | I22: -6.6521 | J22: -4.7804 | K22: -6.251 | L22: -6.9729 | M22: -5.4483 | N22: -6.451533333
B23: Boosting | C23: AUROC | D23: 0.5184 | E23: 0.5561 | F23: 0.501 | G23: 0.4761 | H23: 0.524 | I23: 0.4783 | J23: 0.5058 | K23: 0.5064 | L23: 0.5155 | M23: 0.5222 | N23: 0.5094888889
C24: F1 | D24: 0.8592 | E24: 0.5412 | F24: 0.8884 | G24: 0.8866 | H24: 0.8882 | I24: 0.8879 | J24: 0.889 | K24: 0.888 | L24: 0.8888 | M24: 0.8881 | N24: 0.8495777778
C25: LogLoss | D25: -0.6721 | E25: -0.6869 | F25: -0.6281 | G25: -0.6487 | H25: -0.638 | I25: -0.6449 | J25: -0.6422 | K25: -0.6464 | L25: -0.6388 | M25: -0.6449 | N25: -0.6465444444
O27: Uncertainities
A28: Second training session : | B28: SVM | C28: F1 | D28: 0.6532 | E28: 0.6525 | F28: 0.6542 | G28: 0.6587 | H28: 0.6307 | I28: 0.647 | J28: 0.6577 | K28: 0.643 | L28: 0.6436 | M28: 0.6367 | N28: =AVERAGE(D28:M28) -> 0.64773 | O28: =2.26*STDEV(D28:M28)/SQRT(10) -> 0.006592940753
C29: Precision | D29: 0.8218 | E29: 0.8281 | F29: 0.8277 | G29: 0.8196 | H29: 0.8185 | I29: 0.8277 | J29: 0.8298 | K29: 0.8207 | L29: 0.8238 | M29: 0.8243 | N29: 0.8242 | O29: 0.002847759431 | Q29: SVC | R29: 0.8242 | S29: 0.002847759431
C30: Recall | D30: 0.542 | E30: 0.5383 | F30: 0.5408 | G30: 0.5507 | H30: 0.513 | I30: 0.531 | J30: 0.5447 | K30: 0.5286 | L30: 0.5281 | M30: 0.5186 | N30: 0.53358 | O30: 0.008494567426 | Q30: MLP | R30: 0.82213 | S30: 0.004658750013
B31: NN | C31: F1 | D31: 0.6943 | E31: 0.6132 | F31: 0.6685 | G31: 0.6543 | H31: 0.6524 | I31: 0.6804 | J31: 0.6886 | K31: 0.5976 | L31: 0.589 | M31: 0.6209 | N31: 0.64592 | O31: 0.02741600981 | Q31: Logistic regression | R31: 0.82044 | S31: 0.003755228767
C32: Precision | D32: 0.8185 | E32: 0.8314 | F32: 0.8224 | G32: 0.8105 | H32: 0.8147 | I32: 0.8314 | J32: 0.8224 | K32: 0.8223 | L32: 0.8232 | M32: 0.8245 | N32: 0.82213 | O32: 0.004658750013 | Q32: Bagging | R32: 0.78352 | S32: 0.00151934466
C33: Recall | D33: 0.6028 | E33: 0.4857 | F33: 0.5631 | G33: 0.5486 | H33: 0.5441 | I33: 0.5757 | J33: 0.5923 | K33: 0.4694 | L33: 0.4586 | M33: 0.4979 | N33: 0.53382 | O33: 0.03730886357 | Q33: Random Forest | R33: 0.78137 | S33: 0.001026884802
B34: LR | C34: F1 | D34: 0.6724 | E34: 0.6807 | F34: 0.6722 | G34: 0.6727 | H34: 0.654 | I34: 0.6654 | J34: 0.6834 | K34: 0.6689 | L34: 0.6753 | M34: 0.6649 | N34: 0.67099 | O34: 0.006001230363 | Q34: Boosting | R34: 0.7886 | S34: 0.002683601312
C35: Precision | D35: 0.8201 | E35: 0.8294 | F35: 0.8231 | G35: 0.8151 | H35: 0.813 | I35: 0.8213 | J35: 0.822 | K35: 0.8138 | L35: 0.8259 | M35: 0.8207 | N35: 0.82044 | O35: 0.003755228767 | Q35: Tree | R35: 0.78757 | S35: 0.002766908318
C36: Recall | D36: 0.5697 | E36: 0.5772 | F36: 0.5681 | G36: 0.5726 | H36: 0.547 | I36: 0.5592 | J36: 0.5849 | K36: 0.5679 | L36: 0.5712 | M36: 0.5588 | N36: 0.56766 | O36: 0.007557716938
B37: Bag | C37: F1 | D37: 0.8488 | E37: 0.8391 | F37: 0.8511 | G37: 0.8486 | H37: 0.8505 | I37: 0.8523 | J37: 0.8506 | K37: 0.8529 | L37: 0.8482 | M37: 0.8507 | N37: 0.84928 | O37: 0.002780973646
C38: Precision | D38: 0.7856 | E38: 0.7789 | F38: 0.7848 | G38: 0.7827 | H38: 0.7844 | I38: 0.783 | J38: 0.7814 | K38: 0.786 | L38: 0.784 | M38: 0.7844 | N38: 0.78352 | O38: 0.00151934466
C39: Recall | D39: 0.923 | E39: 0.9094 | F39: 0.9297 | G39: 0.9268 | H39: 0.9288 | I39: 0.935 | J39: 0.9334 | K39: 0.9321 | L39: 0.9238 | M39: 0.9292 | N39: 0.92712 | O39: 0.005231388804
B40: RF | C40: F1 | D40: 0.8676 | E40: 0.8702 | F40: 0.8707 | G40: 0.8698 | H40: 0.8693 | I40: 0.8704 | J40: 0.8703 | K40: 0.8705 | L40: 0.8702 | M40: 0.8694 | N40: 0.86984 | O40: 0.0006508381468
C41: Precision | D41: 0.7783 | E41: 0.7812 | F41: 0.783 | G41: 0.782 | H41: 0.7814 | I41: 0.7822 | J41: 0.7807 | K41: 0.7834 | L41: 0.7809 | M41: 0.7806 | N41: 0.78137 | O41: 0.001026884802
C42: Recall | D42: 0.9801 | E42: 0.9822 | F42: 0.9806 | G42: 0.9797 | H42: 0.9793 | I42: 0.981 | J42: 0.983 | K42: 0.9793 | L42: 0.9826 | M42: 0.981 | N42: 0.98088 | O42: 0.0009616735967
B43: Boost | C43: F1 | D43: 0.8446 | E43: 0.8368 | F43: 0.8455 | G43: 0.8446 | H43: 0.8343 | I43: 0.8476 | J43: 0.843 | K43: 0.8381 | L43: 0.8469 | M43: 0.8393 | N43: 0.84207 | O43: 0.003291652911
C44: Precision | D44: 0.7875 | E44: 0.7857 | F44: 0.7894 | G44: 0.7824 | H44: 0.7957 | I44: 0.7896 | J44: 0.7901 | K44: 0.7884 | L44: 0.7921 | M44: 0.7851 | N44: 0.7886 | O44: 0.002683601312
C45: Recall | D45: 0.9106 | E45: 0.8949 | F45: 0.9102 | G45: 0.9177 | H45: 0.8767 | I45: 0.9147 | J45: 0.9036 | K45: 0.8945 | L45: 0.9098 | M45: 0.9015 | N45: 0.90342 | O45: 0.008717912366
B46: Tree | C46: F1 | D46: 0.7649 | E46: 0.756 | F46: 0.7632 | G46: 0.7666 | H46: 0.7588 | I46: 0.7664 | J46: 0.7711 | K46: 0.7753 | L46: 0.7662 | M46: 0.7567 | N46: 0.76452 | O46: 0.004383183107
C47: Precision | D47: 0.7872 | E47: 0.7823 | F47: 0.7834 | G47: 0.7884 | H47: 0.7897 | I47: 0.7891 | J47: 0.7933 | K47: 0.7931 | L47: 0.7853 | M47: 0.7839 | N47: 0.78757 | O47: 0.002766908318
C48: Recall | D48: 0.7439 | E48: 0.7315 | F48: 0.7439 | G48: 0.746 | H48: 0.7302 | I48: 0.745 | J48: 0.75 | K48: 0.7583 | L48: 0.7479 | M48: 0.7314 | N48: 0.74281 | O48: 0.006532790087

Sheet Results Cluster-Filtering datas
C1: fold | D1: 1 | E1: 2 | F1: 3 | G1: 4 | H1: 5 | I1: 6 | J1: 7 | K1: 8 | L1: 9 | M1: 10 | N1: Average
A2: First training session : | B2: SVM | C2: AUROC | D2: 0.4799 | E2: 0.5085 | F2: 0.5193 | G2: 0.5021 | H2: 0.5132 | J2: 0.5137 | K2: 0.4824 | L2: 0.5122 | M2: 0.5111 | N2: =AVERAGE(E2:M2) -> 0.5078125
A3: Note 1 : these results are from a preliminary training step without any filtering or clustering of the database nor model tuning. All the data mentionned in the paper is from the second training session. | C3: F1 | D3: 0.8893 | E3: 0.8893 | F3: 0.8888 | G3: 0.8893 | H3: 0.8896 | J3: 0.8896 | K3: 0.8896 | L3: 0.889 | M3: 0.8893 | N3: 0.8893125
C4: LogLoss | D4: -2.4862 | E4: -3.6252 | F4: -3.2523 | G4: -3.5365 | H4: -2.5492 | J4: -4.5432 | K4: -3.0443 | L4: -2.6365 | M4: -2.948 | N4: -3.2669
B5: NN | C5: AUROC | E5: 0.4825 | F5: 0.4696 | H5: 0.493 | I5: 0.4711 | K5: 0.4847 | L5: 0.4887 | M5: 0.4873 | N5: 0.4824142857
C6: F1 | D6: 0.8893 | E6: 0.8893 | F6: 0.8893 | G6: 0.8893 | H6: 0.8896 | I6: 0.8896 | J6: 0.8896 | K6: 0.8896 | L6: 0.8882 | M6: 0.8893 | N6: 0.8893111111 | Q6: AUROC or F1 > 0,6 | R6: LogLoss < 0,7
C7: LogLoss | E7: -1.8058 | F7: -2.1335 | H7: -1.3338 | I7: -2.8004 | K7: -1.3673 | L7: -1.8316 | M7: -1.5201 | N7: -1.8275 | Q7: 0,55< AUROC or F1 < 0,6 | R7: 0,7 < LogLoss < 1
B8: CT | C8: AUROC | D8: 0.5 | E8: 0.5 | F8: 0.4995 | H8: 0.4992 | I8: 0.5011 | J8: 0.5 | K8: 0.4995 | L8: 0.4997 | M8: 0.5003 | N8: 0.4999125 | Q8: AUROC or F1 < 0,55 | R8: LogLoss > 1
C9: F1 | D9: 0.8893 | E9: 0.8893 | F9: 0.8888 | G9: 0.8893 | H9: 0.8888 | I9: 0.8898 | J9: 0.8896 | K9: 0.8891 | L9: 0.8893 | M9: 0.8889 | N9: 0.8892111111
A10: Note 2: a blank case means that the model has not converge | C10: LogLoss | D10: -7.1836 | E10: -7.1836 | F10: -7.215 | H10: -7.215 | I10: -7.1523 | J10: -7.168 | K10: -7.1993 | L10: -7.1868 | M10: -7.2025 | N10: -7.1903125
B11: NB | C11: AUROC | D11: 0.5013 | F11: 0.5 | G11: 0.5 | H11: 0.4997 | I11: 0.5 | K11: 0.5 | L11: 0.4949 | N11: 0.4991
C12: F1 | D12: 0.2461 | E12: 0.8893 | F12: 0.8893 | G12: 0.8893 | H12: 0.8893 | I12: 0.8896 | J12: 0.8896 | K12: 0.8896 | L12: 0.8809 | M12: 0.8895 | N12: 0.8884888889
C13: LogLoss | D13: -23.1712 | F13: -7.1836 | G13: -7.1836 | H13: -7.1836 | I13: -7.168 | K13: -7.168 | L13: -7.6575 | N13: -7.257383333
B14: LR | C14: AUROC | D14: 0.4811 | E14: 0.4778 | F14: 0.4753 | G14: 0.501 | H14: 0.4735 | I14: 0.4702 | L14: 0.4832 | M14: 0.4951 | N14: 0.4823
C15: F1 | D15: 0.8893 | E15: 0.8893 | F15: 0.8893 | G15: 0.8893 | H15: 0.8896 | I15: 0.8896 | L15: 0.8895 | M15: 0.8895 | N15: 0.8894428571
C16: LogLoss | D16: -1.1649 | E16: -1.3417 | F16: -1.594 | G16: -1.7118 | H16: -1.2404 | I16: -1.734 | L16: -1.3634 | M16: -1.2442 | N16: -1.461357143
B17: Bagging | C17: AUROC | D17: 0.4986 | F17: 0.4995 | L17: 0.4997 | M17: 0.5 | N17: 0.4997333333
C18: F1 | D18: 0.888 | E18: 0.8893 | F18: 0.8888 | G18: 0.8893 | H18: 0.8896 | I18: 0.8896 | J18: 0.8896 | K18: 0.8896 | L18: 0.8893 | M18: 0.8893 | N18: 0.8893777778
C19: LogLoss | D19: -7.1851 | F19: -7.215 | L19: -7.1868 | M19: -7.1721 | N19: -7.1913
B20: RF | C20: AUROC | F20: 0.4997 | G20: 0.4973 | H20: 0.5028 | I20: 0.4992 | K20: 0.5003 | M20: 0.5 | N20: 0.4998833333
C21: F1 | D21: 0.8893 | E21: 0.8893 | F21: 0.8888 | G21: 0.8893 | H21: 0.8893 | I21: 0.8896 | J21: 0.8896 | K21: 0.8896 | L21: 0.8895 | M21: 0.8893 | N21: 0.8893666667
C22: LogLoss | F22: -7.1426 | G22: -7.184 | H22: -6.7927 | I22: -7.1536 | K22: -7.1388 | M22: -7.158 | N22: -7.09495
B23: Boosting | C23: AUROC | D23: 0.5 | E23: 0.5 | F23: 0.4893 | G23: 0.4963 | H23: 0.4895 | I23: 0.4797 | J23: 0.4876 | K23: 0.4969 | L23: 0.5052 | M23: 0.5 | N23: 0.4938333333
C24: F1 | D24: 0.8893 | E24: 0.8893 | F24: 0.8893 | G24: 0.889 | H24: 0.8893 | I24: 0.8896 | J24: 0.8896 | K24: 0.8896 | L24: 0.8893 | M24: 0.8895 | N24: 0.8893888889
C25: LogLoss | F25: -0.5387 | G25: -6.8652 | H25: -6.8334 | I25: -6.8862 | J25: -5.1629 | K25: -6.8102 | L25: -4.3136 | N25: -5.344314286
O27: Uncertainities
A28: Second training session : | B28: SVM | C28: F1 | D28: 0.7171 | E28: 0.7177 | F28: 0.7109 | G28: 0.715 | H28: 0.7215 | I28: 0.7412 | J28: 0.7263 | K28: 0.7252 | L28: 0.7997 | M28: 0.7187 | N28: =AVERAGE(D28:M28) -> 0.72933 | O28: =2.26*STDEV(D28:M28)/SQRT(10) -> 0.01864134103
C29: Precision | D29: 0.8099 | E29: 0.7949 | F29: 0.785 | G29: 0.7835 | H29: 0.7993 | I29: 0.8097 | J29: 0.7906 | K29: 0.7918 | L29: 0.7884 | M29: 0.7891 | N29: 0.79422 | O29: 0.006698891445
C30: Recall | D30: 0.6434 | E30: 0.6541 | F30: 0.6496 | G30: 0.6574 | H30: 0.6574 | I30: 0.6834 | J30: 0.6718 | K30: 0.6689 | L30: 0.8113 | M30: 0.6598 | N30: 0.67571 | O30: 0.03502939166
B31: NN | C31: F1 | D31: 0.3985 | E31: 0.714 | F31: 0.7145 | G31: 0.705 | H31: 0.7349 | I31: 0.4801 | J31: 0.724 | K31: 0.4771 | L31: 0.724 | M31: 0.7186 | N31: 0.63907 | O31: 0.09377872685
C32: Precision | D32: 0.8206 | E32: 0.7932 | F32: 0.7867 | G32: 0.7859 | H32: 0.793 | I32: 0.8301 | J32: 0.7953 | K32: 0.8097 | L32: 0.7937 | M32: 0.7878 | N32: 0.7996 | O32: 0.01092831978
C33: Recall | D33: 0.2631 | E33: 0.6492 | F33: 0.6545 | G33: 0.6392 | H33: 0.6847 | I33: 0.3377 | J33: 0.6643 | K33: 0.3382 | L33: 0.6656 | M33: 0.6606 | N33: 0.55571 | O33: 0.1208713718
B34: LR | C34: F1 | D34: 0.7194 | E34: 0.6993 | F34: 0.6963 | G34: 0.6959 | H34: 0.7144 | I34: 0.7309 | J34: 0.7158 | K34: 0.7114 | L34: 0.7238 | M34: 0.7139 | N34: 0.71211 | O34: 0.008396368919
C35: Precision | D35: 0.8092 | E35: 0.7946 | F35: 0.7896 | G35: 0.7866 | H35: 0.7986 | I35: 0.8148 | J35: 0.7948 | K35: 0.794 | L35: 0.798 | M35: 0.7907 | N35: 0.79709 | O35: 0.006263861344
C36: Recall | D36: 0.6475 | E36: 0.6243 | F36: 0.6227 | G36: 0.6239 | H36: 0.6463 | I36: 0.6627 | J36: 0.6511 | K36: 0.6445 | L36: 0.6623 | M36: 0.6507 | N36: 0.6436 | O36: 0.01076465623
B37: Bag | C37: F1 | D37: 0.7223 | E37: 0.7017 | F37: 0.7159 | G37: 0.7079 | H37: 0.7019 | I37: 0.7071 | J37: 0.7176 | K37: 0.7168 | L37: 0.7278 | M37: 0.7007 | N37: 0.71197 | O37: 0.006746187278
C38: Precision | D38: 0.812 | E38: 0.7916 | F38: 0.7845 | G38: 0.7893 | H38: 0.7927 | I38: 0.8072 | J38: 0.79 | K38: 0.7881 | L38: 0.797 | M38: 0.7933 | N38: 0.79457 | O38: 0.006189636245
C39: Recall | D39: 0.6504 | E39: 0.6301 | F39: 0.6583 | G39: 0.6417 | H39: 0.6297 | I39: 0.6291 | J39: 0.6573 | K39: 0.6573 | L39: 0.6697 | M39: 0.6275 | N39: 0.64511 | O39: 0.01103228053
B40: RF | C40: F1 | D40: 0.7419 | E40: 0.7142 | F40: 0.7266 | G40: 0.7213 | H40: 0.7245 | I40: 0.7201 | J40: 0.7218 | K40: 0.6964 | L40: 0.7179 | M40: 0.7283 | N40: 0.7213 | O40: 0.008236383198
C41: Precision | D41: 0.8083 | E41: 0.7906 | F41: 0.7814 | G41: 0.7865 | H41: 0.7929 | I41: 0.8022 | J41: 0.7926 | K41: 0.7889 | L41: 0.7963 | M41: 0.789 | N41: 0.79287 | O41: 0.005561421788
C42: Recall | D42: 0.6856 | E42: 0.6512 | F42: 0.6789 | G42: 0.6661 | H42: 0.6669 | I42: 0.6531 | J42: 0.6627 | K42: 0.6233 | L42: 0.6536 | M42: 0.6763 | N42: 0.66177 | O42: 0.01272206039
B43: Boost | C43: F1 | D43: 0.7588 | E43: 0.7506 | F43: 0.7161 | G43: 0.7435 | H43: 0.4671 | I43: 0.7311 | J43: 0.7503 | K43: 0.4872 | L43: 0.7241 | M43: 0.7282 | N43: 0.6857 | O43: 0.07919821674
C44: Precision | D44: 0.8038 | E44: 0.791 | F44: 0.7869 | G44: 0.7789 | H44: 0.8032 | I44: 0.806 | J44: 0.7915 | K44: 0.7942 | L44: 0.7897 | M44: 0.7932 | N44: 0.79384 | O44: 0.00601377087
C45: Recall | D45: 0.7187 | E45: 0.7141 | F45: 0.657 | G45: 0.7112 | H45: 0.3293 | I45: 0.6689 | J45: 0.7132 | K45: 0.3514 | L45: 0.6685 | M45: 0.673 | N45: 0.62053 | O45: 0.1068489294
B46: Tree | C46: F1 | D46: 0.7221 | E46: 0.7238 | F46: 0.7049 | G46: 0.7154 | H46: 0.719 | I46: 0.699 | J46: 0.7273 | K46: 0.7102 | L46: 0.7278 | M46: 0.7278 | N46: 0.71773 | O46: 0.007262934292
C47: Precision | D47: 0.8083 | E47: 0.79 | F47: 0.7838 | G47: 0.7863 | H47: 0.794 | I47: 0.8011 | J47: 0.7883 | K47: 0.7877 | L47: 0.7924 | M47: 0.797 | N47: 0.79289 | O47: 0.005356878063
C48: Recall | D48: 0.6525 | E48: 0.6678 | F48: 0.6405 | G48: 0.6562 | H48: 0.657 | I48: 0.62 | J48: 0.6751 | K48: 0.6465 | L48: 0.673 | M48: 0.6697 | N48: 0.65583 | O48: 0.01219432606
